[Event "*** Titled Tuesday Blitz"]
[Site "Chess.com"]
[Date "2020.10.27"]
[Round "1"]
[White "boasovietica"]
[Black "akanga001"]
[Result "1-0"]
[WhiteElo "2501"]
[BlackElo "1894"]
[TimeControl "180+1"]
[EndTime "10:09:01 PDT"]
[Termination "boasovietica won on time"]

1. e4 {[%clk 0:02:47.9]} 1... c6 {[%clk 0:02:58.7]} 2. d4 {[%clk 0:02:47.2]}
2... d5 {[%clk 0:02:59.6]} 3. exd5 {[%clk 0:02:47.2]} 3... cxd5 {[%clk
0:02:58.7]} 4. Bd3 {[%clk 0:02:47.7]} 4... Nc6 {[%clk 0:02:57.5]} 5. c3 {[%clk
0:02:47.9]} 5... g6 {[%clk 0:02:57.8]} 6. Ne2 {[%clk 0:02:45.7]} 6... Bg7 {[%clk
0:02:57.8]} 7. O-O {[%clk 0:02:46]} 7... Nf6 {[%clk 0:02:57.3]} 8. Nd2 {[%clk
0:02:46.3]} 8... O-O {[%clk 0:02:57]} 9. Nf3 {[%clk 0:02:43.5]} 9... Bg4 {[%clk
0:02:53.4]} 10. Ng3 {[%clk 0:02:43.4]} 10... e5 {[%clk 0:02:50.5]} 11. dxe5
{[%clk 0:02:44.3]} 11... Nxe5 {[%clk 0:02:49.7]} 12. Be2 {[%clk 0:02:44.5]}
12... Bxf3 {[%clk 0:02:43.1]} 13. Bxf3 {[%clk 0:02:45.4]} 13... Nxf3+ {[%clk
0:02:42.3]} 14. Qxf3 {[%clk 0:02:46.3]} 14... b6 {[%clk 0:02:40.6]} 15. Bg5
{[%clk 0:02:35.9]} 15... Qd6 {[%clk 0:02:39.2]} 16. Rad1 {[%clk 0:02:31.4]}
16... Rad8 {[%clk 0:02:34.6]} 17. Rd3 {[%clk 0:02:29.8]} 17... Rfe8 {[%clk
0:02:24.8]} 18. Rfd1 {[%clk 0:02:25.8]} 18... h6 {[%clk 0:02:12.7]} 19. Bxf6
{[%clk 0:02:17.9]} 19... Qxf6 {[%clk 0:02:05.4]} 20. Qxf6 {[%clk 0:02:13]} 20...
Bxf6 {[%clk 0:02:04.7]} 21. Kf1 {[%clk 0:01:54.1]} 21... h5 {[%clk 0:02:00.4]}
22. Rxd5 {[%clk 0:01:51.4]} 22... Rxd5 {[%clk 0:01:50.6]} 23. Rxd5 {[%clk
0:01:52.3]} 23... h4 {[%clk 0:01:43.8]} 24. Ne2 {[%clk 0:01:49.2]} 24... Re4
{[%clk 0:01:34.9]} 25. Rd7 {[%clk 0:01:38.2]} 25... a5 {[%clk 0:01:28]} 26. Nd4
{[%clk 0:01:32.5]} 26... Bg5 {[%clk 0:01:17.3]} 27. Nf3 {[%clk 0:01:19.8]} 27...
Bc1 {[%clk 0:01:15.3]} 28. b3 {[%clk 0:01:18.8]} 28... Bb2 {[%clk 0:01:13.7]}
29. Rd4 {[%clk 0:01:13.8]} 29... Re6 {[%clk 0:01:09]} 30. Rc4 {[%clk 0:01:07.7]}
30... h3 {[%clk 0:01:01]} 31. g3 {[%clk 0:01:05.8]} 31... b5 {[%clk 0:01:00.2]}
32. Rc8+ {[%clk 0:01:02.4]} 32... Kg7 {[%clk 0:00:59.3]} 33. Ng5 {[%clk
0:00:53]} 33... Rd6 {[%clk 0:00:58.1]} 34. Nxh3 {[%clk 0:00:53]} 34... Rd3
{[%clk 0:00:54.6]} 35. Nf4 {[%clk 0:00:42.8]} 35... Rxc3 {[%clk 0:00:52.5]} 36.
Rxc3 {[%clk 0:00:42.4]} 36... Bxc3 {[%clk 0:00:53.4]} 37. Nd5 {[%clk 0:00:41.8]}
37... Bb2 {[%clk 0:00:49.7]} 38. Nc7 {[%clk 0:00:36.4]} 38... b4 {[%clk
0:00:46.5]} 39. Nd5 {[%clk 0:00:35.7]} 39... Bd4 {[%clk 0:00:42.9]} 40. Ke2
{[%clk 0:00:33.9]} 40... f5 {[%clk 0:00:43.2]} 41. f3 {[%clk 0:00:29.8]} 41...
Kf7 {[%clk 0:00:42.3]} 42. Kd3 {[%clk 0:00:29.9]} 42... Bg1 {[%clk 0:00:41.7]}
43. h3 {[%clk 0:00:29.6]} 43... Ke6 {[%clk 0:00:41.8]} 44. Nf4+ {[%clk
0:00:27.3]} 44... Kf6 {[%clk 0:00:40.5]} 45. Ne2 {[%clk 0:00:27.5]} 45... Ba7
{[%clk 0:00:34.6]} 46. f4 {[%clk 0:00:20.9]} 46... g5 {[%clk 0:00:33.6]} 47.
fxg5+ {[%clk 0:00:18.8]} 47... Kxg5 {[%clk 0:00:34.5]} 48. Nd4 {[%clk
0:00:16.8]} 48... f4 {[%clk 0:00:32.5]} 49. gxf4+ {[%clk 0:00:15.9]} 49... Kxf4
{[%clk 0:00:32.4]} 50. Nc6 {[%clk 0:00:15.7]} 50... Bb6 {[%clk 0:00:31.6]} 51.
Kc4 {[%clk 0:00:16]} 51... Ke4 {[%clk 0:00:24.8]} 52. Kb5 {[%clk 0:00:16]} 52...
Bc7 {[%clk 0:00:24.1]} 53. Nxa5 {[%clk 0:00:16.2]} 53... Bd6 {[%clk 0:00:20.3]}
54. Nc6 {[%clk 0:00:16.3]} 54... Kd5 {[%clk 0:00:13]} 55. Nxb4+ {[%clk
0:00:16.1]} 55... Ke6 {[%clk 0:00:13.6]} 56. a4 {[%clk 0:00:15.4]} 56... Kd7
{[%clk 0:00:13.9]} 57. a5 {[%clk 0:00:14.4]} 57... Kc8 {[%clk 0:00:14.4]} 58.
Nc6 {[%clk 0:00:14.1]} 58... Kc7 {[%clk 0:00:14.1]} 59. b4 {[%clk 0:00:12.7]}
59... Kb7 {[%clk 0:00:13.5]} 60. h4 {[%clk 0:00:12.2]} 60... Bf4 {[%clk
0:00:12.1]} 61. h5 {[%clk 0:00:12.4]} 61... Be3 {[%clk 0:00:09.7]} 62. a6+
{[%clk 0:00:09.6]} 62... Ka8 {[%clk 0:00:09.3]} 63. Ne5 {[%clk 0:00:09]} 63...
Bh6 {[%clk 0:00:06.2]} 64. Kc6 {[%clk 0:00:06.2]} 64... Be3 {[%clk 0:00:06.4]}
65. b5 {[%clk 0:00:06.1]} 65... Bd4 {[%clk 0:00:06.1]} 66. Nd7 {[%clk
0:00:06.1]} 66... Be3 {[%clk 0:00:05.7]} 67. Nb6+ {[%clk 0:00:06.2]} 67... Ka7
{[%clk 0:00:05.2]} 68. Nc8+ {[%clk 0:00:06.6]} 68... Ka8 {[%clk 0:00:05.4]} 69.
Nd6 {[%clk 0:00:07]} 69... Ka7 {[%clk 0:00:05.3]} 70. Nc8+ {[%clk 0:00:07.2]}
70... Ka8 {[%clk 0:00:03.1]} 71. b6 {[%clk 0:00:07.5]} 1-0

[Event "*** Titled Tuesday Blitz"]
[Site "Chess.com"]
[Date "2020.10.27"]
[Round "1"]
[White "Quattroporte300"]
[Black "korbul"]
[Result "0-1"]
[WhiteElo "2258"]
[BlackElo "2601"]
[TimeControl "180+1"]
[EndTime "10:09:14 PDT"]
[Termination "korbul won by resignation"]

1. d4 {[%clk 0:03:00]} 1... Nf6 {[%clk 0:02:59.3]} 2. c4 {[%clk 0:02:58.2]} 2...
e6 {[%clk 0:02:58.9]} 3. Nf3 {[%clk 0:02:57.3]} 3... d5 {[%clk 0:02:57.7]} 4. g3
{[%clk 0:02:53.5]} 4... Be7 {[%clk 0:02:56.9]} 5. Bg2 {[%clk 0:02:44.6]} 5...
O-O {[%clk 0:02:55.9]} 6. O-O {[%clk 0:02:40.9]} 6... c6 {[%clk 0:02:56]} 7. Qc2
{[%clk 0:02:33.5]} 7... Nbd7 {[%clk 0:02:55.7]} 8. Bf4 {[%clk 0:02:25.5]} 8...
b6 {[%clk 0:02:52.1]} 9. Rd1 {[%clk 0:02:19]} 9... Ba6 {[%clk 0:02:47.9]} 10. b3
{[%clk 0:02:10.1]} 10... Nh5 {[%clk 0:02:31.6]} 11. Bc1 {[%clk 0:02:05.9]} 11...
Rc8 {[%clk 0:02:23.1]} 12. Ba3 {[%clk 0:01:43.4]} 12... Bxa3 {[%clk 0:02:14.9]}
13. Nxa3 {[%clk 0:01:43.8]} 13... Nhf6 {[%clk 0:02:15.2]} 14. Ne5 {[%clk
0:01:35]} 14... Nxe5 {[%clk 0:02:13.4]} 15. dxe5 {[%clk 0:01:34.9]} 15... Ng4
{[%clk 0:02:08.2]} 16. Qc3 {[%clk 0:01:21.9]} 16... Qc7 {[%clk 0:02:06]} 17. f4
{[%clk 0:01:20.6]} 17... Qe7 {[%clk 0:02:05.6]} 18. Nc2 {[%clk 0:01:15.5]} 18...
dxc4 {[%clk 0:02:00.9]} 19. bxc4 {[%clk 0:01:09.3]} 19... Qc5+ {[%clk
0:02:00.1]} 20. Rd4 {[%clk 0:01:09.6]} 20... b5 {[%clk 0:01:57]} 21. h3 {[%clk
0:01:00.3]} 21... Nh6 {[%clk 0:01:53.3]} 22. Kh2 {[%clk 0:00:47.3]} 22... Nf5
{[%clk 0:01:43.3]} 23. Rd7 {[%clk 0:00:32.7]} 23... bxc4 {[%clk 0:01:10.3]} 24.
e4 {[%clk 0:00:32.9]} 24... Nh6 {[%clk 0:00:56.5]} 25. Rad1 {[%clk 0:00:32]}
25... Bb5 {[%clk 0:00:53.6]} 26. R1d2 {[%clk 0:00:23.3]} 26... a5 {[%clk
0:00:39.9]} 27. Bf1 {[%clk 0:00:23.1]} 27... Ba4 {[%clk 0:00:26.8]} 28. Ne3
{[%clk 0:00:22.9]} 28... Bb5 {[%clk 0:00:24]} 29. Bxc4 {[%clk 0:00:17.9]} 29...
Kh8 {[%clk 0:00:23.8]} 30. Qd3 {[%clk 0:00:13.2]} 30... Ng8 {[%clk 0:00:23.4]}
31. Rc2 {[%clk 0:00:10.2]} 31... Ba4 {[%clk 0:00:22.7]} 32. Rc3 {[%clk
0:00:09.7]} 32... Qb4 {[%clk 0:00:22.5]} 33. Bb3 {[%clk 0:00:09]} 33... Bxb3
{[%clk 0:00:21.7]} 34. Rxb3 {[%clk 0:00:09.9]} 34... Qa4 {[%clk 0:00:21.9]} 35.
Qc2 {[%clk 0:00:06.7]} 35... c5 {[%clk 0:00:21]} 36. Rc3 {[%clk 0:00:06.8]}
36... Qb4 {[%clk 0:00:20.3]} 37. Rc4 {[%clk 0:00:06.4]} 37... Qb5 {[%clk
0:00:20.1]} 38. Rd6 {[%clk 0:00:04.9]} 38... Rb8 {[%clk 0:00:19.4]} 39. a4
{[%clk 0:00:04.6]} 39... Qb2 {[%clk 0:00:19]} 40. Rxc5 {[%clk 0:00:04.4]} 40...
Qxc2+ {[%clk 0:00:18.6]} 41. Rxc2 {[%clk 0:00:04.3]} 41... Rb4 {[%clk
0:00:19.4]} 42. Rc4 {[%clk 0:00:03.5]} 42... Rb3 {[%clk 0:00:18.7]} 43. Ng4
{[%clk 0:00:02.8]} 43... Rb2+ {[%clk 0:00:18.3]} 44. Kg1 {[%clk 0:00:02.7]}
44... h5 {[%clk 0:00:19.2]} 45. Nf2 {[%clk 0:00:02.8]} 45... Rfb8 {[%clk
0:00:19.1]} 46. Kg2 {[%clk 0:00:03.4]} 46... Ra2 {[%clk 0:00:19.2]} 47. Rd3
{[%clk 0:00:03.6]} 47... Rbb2 {[%clk 0:00:19]} 48. Rf3 {[%clk 0:00:04.1]} 48...
Rb4 {[%clk 0:00:19.5]} 49. Rxb4 {[%clk 0:00:04]} 49... axb4 {[%clk 0:00:20.4]}
50. Rb3 {[%clk 0:00:04.8]} 50... Rxa4 {[%clk 0:00:20.6]} 51. Kf3 {[%clk
0:00:05.4]} 51... Ne7 {[%clk 0:00:20.9]} 52. Ke2 {[%clk 0:00:05.6]} 52... Nc6
{[%clk 0:00:21.8]} 53. Kd2 {[%clk 0:00:05.6]} 53... Na5 {[%clk 0:00:22]} 54. Rb2
{[%clk 0:00:05.3]} 54... b3 {[%clk 0:00:22.4]} 55. Kc3 {[%clk 0:00:04.8]} 55...
Ra1 {[%clk 0:00:22.4]} 56. Nd3 {[%clk 0:00:04.2]} 56... Rg1 {[%clk 0:00:21.4]}
57. g4 {[%clk 0:00:04.5]} 57... Rg3 {[%clk 0:00:21.1]} 58. Kb4 {[%clk
0:00:03.7]} 58... Nc6+ {[%clk 0:00:20.6]} 59. Kc5 {[%clk 0:00:03.6]} 59... Rxd3
{[%clk 0:00:19.5]} 60. Kxc6 {[%clk 0:00:03.9]} 60... h4 {[%clk 0:00:20.4]} 61.
g5 {[%clk 0:00:02.7]} 61... Rxh3 {[%clk 0:00:21.3]} 62. Kd7 {[%clk 0:00:02.3]}
62... Rf3 {[%clk 0:00:19.7]} 63. f5 {[%clk 0:00:02.5]} 63... exf5 {[%clk
0:00:19.3]} 64. exf5 {[%clk 0:00:03.4]} 64... Rxf5 {[%clk 0:00:19.5]} 65. Kd6
{[%clk 0:00:03.2]} 65... Rf3 {[%clk 0:00:19.2]} 66. Ke7 {[%clk 0:00:02.5]} 66...
Rf5 {[%clk 0:00:17.9]} 67. e6 {[%clk 0:00:02.6]} 67... fxe6 {[%clk 0:00:17.6]}
68. Kxe6 {[%clk 0:00:03.2]} 68... Rxg5 {[%clk 0:00:17.5]} 69. Rxb3 {[%clk
0:00:03.8]} 69... Rh5 {[%clk 0:00:18.4]} 70. Rh3 {[%clk 0:00:03.9]} 70... Kh7
{[%clk 0:00:18.7]} 71. Kf7 {[%clk 0:00:03.2]} 71... Rf5+ {[%clk 0:00:16.9]} 72.
Ke6 {[%clk 0:00:02.9]} 72... Rf4 {[%clk 0:00:16.9]} 73. Ke5 {[%clk 0:00:03]}
73... Ra4 {[%clk 0:00:16.7]} 74. Kf5 {[%clk 0:00:03.3]} 74... Kh6 {[%clk
0:00:16.9]} 75. Rh1 {[%clk 0:00:03]} 75... Kh5 {[%clk 0:00:17.1]} 76. Rh2 {[%clk
0:00:03]} 76... g5 {[%clk 0:00:16.6]} 77. Rh1 {[%clk 0:00:02.5]} 77... Rf4+
{[%clk 0:00:16.6]} 78. Ke5 {[%clk 0:00:02.4]} 78... Rf8 {[%clk 0:00:16.3]} 79.
Rg1 {[%clk 0:00:02.6]} 79... g4 {[%clk 0:00:16.4]} 80. Rh1 {[%clk 0:00:03.1]}
80... g3 {[%clk 0:00:16.4]} 0-1

[Event "*** Titled Tuesday Blitz"]
[Site "Chess.com"]
[Date "2020.10.27"]
[Round "1"]
[White "Azatic"]
[Black "Kotofeyca"]
[Result "0-1"]
[WhiteElo "2665"]
[BlackElo "2360"]
[TimeControl "180+1"]
[EndTime "10:09:21 PDT"]
[Termination "Kotofeyca won by checkmate"]

1. e4 {[%clk 0:03:00.9]} 1... c5 {[%clk 0:02:59.8]} 2. Nf3 {[%clk 0:03:00.4]}
2... d6 {[%clk 0:03:00.3]} 3. Nc3 {[%clk 0:02:59]} 3... a6 {[%clk 0:02:59.9]} 4.
d4 {[%clk 0:02:56.7]} 4... cxd4 {[%clk 0:03:00.8]} 5. Nxd4 {[%clk 0:02:57.6]}
5... Nf6 {[%clk 0:03:01.2]} 6. Be3 {[%clk 0:02:57.7]} 6... Ng4 {[%clk
0:03:00.4]} 7. Bc1 {[%clk 0:02:57.6]} 7... Nc6 {[%clk 0:03:00.2]} 8. Nb3 {[%clk
0:02:46.6]} 8... g6 {[%clk 0:02:53]} 9. Be2 {[%clk 0:02:44.7]} 9... Nf6 {[%clk
0:02:53.1]} 10. O-O {[%clk 0:02:43]} 10... Bg7 {[%clk 0:02:53.6]} 11. Re1 {[%clk
0:02:43.4]} 11... O-O {[%clk 0:02:53.8]} 12. Bf1 {[%clk 0:02:43.8]} 12... b5
{[%clk 0:02:52]} 13. Bg5 {[%clk 0:02:43.1]} 13... Bb7 {[%clk 0:02:46.3]} 14. Qd2
{[%clk 0:02:42.8]} 14... Re8 {[%clk 0:02:30.2]} 15. Rad1 {[%clk 0:02:39.4]}
15... Ne5 {[%clk 0:02:28.4]} 16. h3 {[%clk 0:02:24.6]} 16... Nc4 {[%clk
0:02:15.3]} 17. Bxc4 {[%clk 0:02:03.4]} 17... bxc4 {[%clk 0:02:16.2]} 18. Nd4
{[%clk 0:02:04]} 18... Qb6 {[%clk 0:02:15.9]} 19. Na4 {[%clk 0:01:28.5]} 19...
Qc7 {[%clk 0:02:04.6]} 20. Nc3 {[%clk 0:01:28.7]} 20... Rab8 {[%clk 0:01:59.4]}
21. Bh6 {[%clk 0:01:26.6]} 21... Bh8 {[%clk 0:01:58]} 22. Nf3 {[%clk 0:01:05.5]}
22... Bc6 {[%clk 0:01:47.9]} 23. Rb1 {[%clk 0:01:05.2]} 23... Qb7 {[%clk
0:01:45]} 24. Qe3 {[%clk 0:00:59]} 24... Qb6 {[%clk 0:01:37]} 25. Qe2 {[%clk
0:00:53.9]} 25... Rec8 {[%clk 0:01:26]} 26. Be3 {[%clk 0:00:53.5]} 26... Qb7
{[%clk 0:01:22.3]} 27. Bd2 {[%clk 0:00:50.5]} 27... Nd7 {[%clk 0:01:15.6]} 28.
Qe3 {[%clk 0:00:41.5]} 28... Ne5 {[%clk 0:01:12.6]} 29. Nd4 {[%clk 0:00:39.4]}
29... Bd7 {[%clk 0:01:09.2]} 30. f4 {[%clk 0:00:38.9]} 30... Nc6 {[%clk
0:01:09.2]} 31. Nxc6 {[%clk 0:00:36.7]} 31... Bxc6 {[%clk 0:01:10.1]} 32. Qg3
{[%clk 0:00:35.5]} 32... Bxc3 {[%clk 0:01:00.7]} 33. Bxc3 {[%clk 0:00:36.4]}
33... Bxe4 {[%clk 0:00:59.9]} 34. Qg5 {[%clk 0:00:24.4]} 34... Rc5 {[%clk
0:00:56.2]} 35. Qh6 {[%clk 0:00:20.2]} 35... f6 {[%clk 0:00:56.1]} 36. Qh4
{[%clk 0:00:18.3]} 36... Bxg2 {[%clk 0:00:54.7]} 37. Re3 {[%clk 0:00:18]} 37...
Rh5 {[%clk 0:00:52.4]} 38. Qg3 {[%clk 0:00:16.8]} 38... Bxh3 {[%clk 0:00:51.1]}
39. Rbe1 {[%clk 0:00:16.3]} 39... Bf5 {[%clk 0:00:42.4]} 40. Kf2 {[%clk
0:00:13.4]} 40... Rh3 {[%clk 0:00:40.4]} 41. Qg1 {[%clk 0:00:09.1]} 41... Rxe3
{[%clk 0:00:36]} 42. Rxe3 {[%clk 0:00:10]} 42... Kf7 {[%clk 0:00:35.9]} 43. Qe1
{[%clk 0:00:10.1]} 43... Qd7 {[%clk 0:00:32.7]} 44. Qh1 {[%clk 0:00:10]} 44...
h5 {[%clk 0:00:31.1]} 45. Qd5+ {[%clk 0:00:10.4]} 45... Be6 {[%clk 0:00:29.3]}
46. Qd4 {[%clk 0:00:10.5]} 46... Rb5 {[%clk 0:00:29.3]} 47. a4 {[%clk
0:00:09.2]} 47... Rd5 {[%clk 0:00:29.1]} 48. Qe4 {[%clk 0:00:08.7]} 48... h4
{[%clk 0:00:25.5]} 49. a5 {[%clk 0:00:08.2]} 49... h3 {[%clk 0:00:25.2]} 50. Kg3
{[%clk 0:00:08.6]} 50... Rh5 {[%clk 0:00:24.7]} 51. Kh2 {[%clk 0:00:08.4]} 51...
Rh4 {[%clk 0:00:23.1]} 52. Qf3 {[%clk 0:00:07.3]} 52... Bf5 {[%clk 0:00:21]} 53.
Qg3 {[%clk 0:00:07.5]} 53... Rh5 {[%clk 0:00:20.2]} 54. Qe1 {[%clk 0:00:07.4]}
54... d5 {[%clk 0:00:19.7]} 55. Bd4 {[%clk 0:00:07.3]} 55... Be4 {[%clk
0:00:19.6]} 56. Qg3 {[%clk 0:00:06.5]} 56... Qf5 {[%clk 0:00:19.2]} 57. Re2
{[%clk 0:00:06.6]} 57... g5 {[%clk 0:00:18.7]} 58. fxg5 {[%clk 0:00:07.2]} 58...
Rxg5 {[%clk 0:00:19.2]} 59. Qh4 {[%clk 0:00:06.5]} 59... Rg2+ {[%clk 0:00:17.1]}
60. Rxg2 {[%clk 0:00:06.7]} 60... hxg2 {[%clk 0:00:17.3]} 61. Be3 {[%clk
0:00:02.9]} 61... Qg6 {[%clk 0:00:17.2]} 62. Bg1 {[%clk 0:00:01.2]} 62... Bf3
{[%clk 0:00:17.2]} 63. Qh3 {[%clk 0:00:01.8]} 63... Qh5 {[%clk 0:00:15.6]} 64.
Qxh5+ {[%clk 0:00:02]} 64... Bxh5 {[%clk 0:00:16.5]} 65. Kxg2 {[%clk 0:00:02.9]}
65... Bg6 {[%clk 0:00:16.4]} 66. c3 {[%clk 0:00:03.4]} 66... e5 {[%clk
0:00:16.7]} 67. Kf2 {[%clk 0:00:04]} 67... Ke6 {[%clk 0:00:17.1]} 68. Ke3 {[%clk
0:00:04.9]} 68... f5 {[%clk 0:00:16.9]} 69. Bh2 {[%clk 0:00:05.3]} 69... f4+
{[%clk 0:00:17.8]} 70. Ke2 {[%clk 0:00:05.9]} 70... Kf5 {[%clk 0:00:18.1]} 71.
Bg1 {[%clk 0:00:06.5]} 71... Ke4 {[%clk 0:00:18.6]} 72. b4 {[%clk 0:00:07.1]}
72... Bh5+ {[%clk 0:00:19.5]} 73. Ke1 {[%clk 0:00:06.3]} 73... d4 {[%clk
0:00:19.8]} 74. b5 {[%clk 0:00:06.3]} 74... axb5 {[%clk 0:00:20]} 75. a6 {[%clk
0:00:07.2]} 75... Be8 {[%clk 0:00:20.3]} 76. cxd4 {[%clk 0:00:06.9]} 76... exd4
{[%clk 0:00:19.6]} 77. Kd2 {[%clk 0:00:07.8]} 77... Bc6 {[%clk 0:00:19.6]} 78.
a7 {[%clk 0:00:08.7]} 78... b4 {[%clk 0:00:19]} 79. Kc2 {[%clk 0:00:09]} 79...
b3+ {[%clk 0:00:18.8]} 80. Kb2 {[%clk 0:00:09.6]} 80... f3 {[%clk 0:00:18.7]}
81. Bf2 {[%clk 0:00:09.5]} 81... Kd3 {[%clk 0:00:18.7]} 82. Bg1 {[%clk
0:00:09.3]} 82... Bd5 {[%clk 0:00:19.2]} 83. Bf2 {[%clk 0:00:08.7]} 83... c3+
{[%clk 0:00:20.1]} 84. Ka3 {[%clk 0:00:08.1]} 84... b2 {[%clk 0:00:20.3]} 85.
a8=Q {[%clk 0:00:05.2]} 85... Bxa8 {[%clk 0:00:19.5]} 86. Bxd4 {[%clk
0:00:05.9]} 86... Kxd4 {[%clk 0:00:19]} 87. Ka2 {[%clk 0:00:05.6]} 87... Be4
{[%clk 0:00:18.5]} 88. Ka3 {[%clk 0:00:05.3]} 88... b1=Q {[%clk 0:00:18.7]} 89.
Ka4 {[%clk 0:00:06.2]} 89... Kc4 {[%clk 0:00:17.7]} 90. Ka5 {[%clk 0:00:07.1]}
90... Qb5# {[%clk 0:00:17]} 0-1